fUST/lending_fUST_20241031
["ID","MTS","AMOUNT","RATE_DAILY","PERIOD"]
[341053038,1730306971103,-500.0,0.00035834,5]
[341053039,1730306971125,-500.0,0.00035834,5]
[341053040,1730306971145,-500.0,0.00035834,5]
[341053041,1730306971165,-500.0,0.00035834,5]
[341053042,1730306971186,-500.0,0.00035834,5]
[341053043,1730306971210,-384.08275237,0.00035834,5]
[341053044,1730306971230,-500.0,0.00035834,5]
[341053045,1730306971249,-500.0,0.00035834,5]
[341053046,1730306971269,-500.0,0.00035834,5]
[341053047,1730306971294,-569.93134522,0.00035834,5]
[341053048,1730306971314,-500.0,0.00035834,5]
[341053049,1730306971338,-579.28,0.00035834,5]
[341053050,1730306971360,-500.0,0.00035834,5]
[341053051,1730306971395,-503.4641707,0.00035834,5]
[341053052,1730306971418,-500.0,0.00035834,5]
[341053053,1730306971442,-853.14,0.00035834,5]
[341053054,1730306971463,-500.0,0.00035834,5]
[341053055,1730306971485,-500.0,0.00035834,5]
[341053056,1730306971507,-500.0,0.00035834,5]
[341053057,1730306971527,-385.78738381,0.00035834,5]
[341053058,1730306971547,-500.0,0.00035834,5]
[341053059,1730306971568,-501.74561944,0.00035834,5]
[341053060,1730306971592,-500.0,0.00035834,5]
[341053061,1730306971614,-500.0,0.00035834,5]
[341053062,1730306971634,-500.0,0.00035834,5]
[341053063,1730306971654,-502.92575867,0.00035834,5]
[341053064,1730306971677,-500.0,0.00035834,5]
[341053065,1730306971698,-500.0,0.00035834,5]
[341053066,1730306971719,-506.657487,0.00035835,5]
[341053067,1730306971739,-500.0,0.00035835,5]
[341053068,1730306971764,-506.70028834,0.00035835,5]
[341053069,1730306971792,-158.00490659,0.00035835,5]
[341053070,1730306971815,-500.0,0.00035835,5]
[341053071,1730306971836,-614.38255291,0.00035835,5]
[341053072,1730306971855,-500.0,0.00035835,5]
[341053073,1730306971878,-636.58,0.00035835,5]
[341053074,1730306971898,-505.70865017,0.00035835,5]
[341053075,1730306971922,-500.0,0.00035835,5]
[341053076,1730306971945,-592.2401475,0.00035835,5]
[341053077,1730306971974,-552.97058087,0.00035835,5]
[341053078,1730306971996,-500.0,0.00035835,5]
[341053079,1730306972016,-507.25817471,0.00035835,5]
[341053080,1730306972035,-502.43640953,0.00035835,5]
[341053081,1730306972055,-500.0,0.00035835,5]
[341053082,1730306972076,-504.58723721,0.00035835,5]
[341053083,1730306972097,-501.91102881,0.00035835,5]
[341053084,1730306972118,-506.0,0.00035835,5]
[341053085,1730306972138,-505.22513884,0.00035835,5]
[341053086,1730306972160,-618.25661361,0.00035835,5]
[341053087,1730306972181,-500.0,0.00035835,5]
[341053088,1730306972204,-410.31283046,0.00035835,5]
[341053089,1730306972224,-504.49008035,0.00035835,5]
[341053090,1730306972245,-522.92967967,0.00035835,5]
[341053091,1730306972268,-504.46078254,0.00035835,5]
[341053092,1730306972290,-503.37123828,0.00035835,5]
[341053093,1730306972314,-509.74239942,0.00035835,5]
[341053094,1730306972338,-500.0,0.00035835,5]
[341053095,1730306972360,-500.0,0.00035835,5]
[341053096,1730306972381,-500.0,0.00035835,2]
[341053097,1730306972404,-556.55695908,0.00035835,5]
[341053098,1730306972427,-322.58958628,0.00035835,14]
[341053099,1730306972450,-300.0,0.000359,12]
[341053100,1730306972472,-151.0,0.00035935,15]
[341053101,1730306972578,500.0,0.00035834,5]
[341053102,1730306972664,500.0,0.00035834,5]
[341053103,1730306972695,500.0,0.00035834,5]
[341053104,1730306975304,500.0,0.00035834,5]
[341053105,1730306975636,155.7315,0.00025796,2]
[341053106,1730306977657,500.0,0.00035834,5]
[341053107,1730306978116,500.0,0.00035834,5]
[341053108,1730306982638,500.0,0.00035834,5]
[341053109,1730306983308,500.0,0.00035834,5]
[341053110,1730306985319,500.0,0.00035833,5]
[341053111,1730306986044,500.0,0.00035833,5]
[341053112,1730306992866,500.0,0.00035834,5]
[341053113,1730306994063,500.0,0.00035833,5]
[341053114,1730306994545,500.0,0.00035834,5]
[341053115,1730306994670,500.0,0.00035834,5]
[341053116,1730306995926,500.0,0.00035834,5]
[341053117,1730306996274,500.0,0.00035834,5]
[341053118,1730306997276,712.56,0.00035833,5]
[341053119,1730307001924,500.0,0.00035834,5]
[341053120,1730307002463,167.988,0.00030481,2]
[341053121,1730307002495,500.0,0.00035834,5]
[341053122,1730307004009,500.0,0.00035834,5]
[341053123,1730307004235,545.19,0.00035834,5]
[341053124,1730307007238,552.14282084,0.0003011,2]
[341053125,1730307007880,500.0,0.00035834,5]
[341053126,1730307008354,469.35714104,0.00031616,2]
[341053127,1730307015602,504.13077146,0.00035834,5]
[341053128,1730307015972,500.0,0.00035833,5]
[341053129,1730307016735,500.0,0.00035834,5]
[341053130,1730307018530,500.0,0.00035833,5]
[341053131,1730307019096,500.0,0.00035834,5]
[341053132,1730307019351,500.0,0.00035833,5]
[341053133,1730307023990,1500.0,0.00035834,2]
[341053134,1730307030143,500.0,0.00035833,5]
[341053135,1730307030176,500.0,0.00035834,5]
[341053147,1730307031797,500.0,0.00035834,5]
[341053222,1730307035803,1000.0,0.00035834,89]
[341053227,1730307039594,150.55673,0.000349,2]
[341053235,1730307040738,500.0,0.00035834,5]
[341053238,1730307044638,500.0,0.00035834,5]
[341053239,1730307044943,500.0,0.00035834,5]
[341053247,1730307046197,163.0,0.0003,2]
[341053248,1730307046313,-200.0,0.0003452,2]
[341053249,1730307046323,-246.11,0.0003452,2]
[341053254,1730307046641,202.0,0.00024,2]
[341053257,1730307046865,500.0,0.00035834,5]
[341053258,1730307047175,500.0,0.00035834,5]
[341053259,1730307047365,500.0,0.00035834,5]
[341053260,1730307050248,500.0,0.00035834,5]
[341053261,1730307050951,500.0,0.00035834,5]
[341053262,1730307054625,500.0,0.00035834,5]
[341053263,1730307057608,767.57,0.00035833,5]
[341053264,1730307065667,500.0,0.00035834,5]
[341053265,1730307067811,500.0,0.00035834,5]
[341053266,1730307068133,500.0,0.00035834,5]
[341053267,1730307068340,500.0,0.00035834,5]
[341053268,1730307069039,200.0,0.00033555,2]
[341053269,1730307069644,503.42041092,0.00035834,5]
[341053270,1730307073265,500.0,0.00035834,5]
[341053271,1730307073426,500.0,0.00035834,5]
[341053272,1730307073579,504.44598081,0.00035833,5]
[341053273,1730307076995,500.0,0.00035834,5]
[341053274,1730307082365,500.0,0.00035834,5]
[341053275,1730307083197,500.0,0.00035834,5]
[341053276,1730307086588,500.0,0.00035834,5]
[341053277,1730307093493,500.0,0.00035834,5]
[341053278,1730307095282,500.0,0.00035834,5]
[341053279,1730307096604,165.856302,0.00033806,2]
[341053280,1730307096888,165.856302,0.00034058,2]
[341053281,1730307097102,165.856302,0.0003431,2]
[341053282,1730307097572,165.856302,0.00034561,2]
[341053283,1730307097837,165.856302,0.00034813,2]
[341053284,1730307097919,500.0,0.00035834,5]
[341053285,1730307098063,165.856302,0.00035065,2]
[341053286,1730307098504,165.856302,0.00035316,2]
[341053287,1730307098778,165.856302,0.00035568,2]
[341053288,1730307100744,500.0,0.00035834,5]
[341053289,1730307103547,500.0,0.00035833,5]
[341053290,1730307105624,500.0,0.00035834,5]
[341053291,1730307106422,500.0,0.00035834,5]
[341053292,1730307106654,502.31889446,0.00035833,5]
[341053293,1730307107326,522.37718172,0.00035834,5]
[341053294,1730307109255,411.51363635,0.00035833,5]
[341053295,1730307110028,500.0,0.00035833,5]
[341053296,1730307110162,500.0,0.00035834,5]
[341053297,1730307111656,534.46629685,0.00035833,5]
[341053298,1730307112293,506.2000434,0.00035834,5]
[341053299,1730307113438,151.0,0.00035938,15]
[341053300,1730307113599,151.0,0.00035134,15]
[341053301,1730307113748,151.0,0.0003433,15]
[341053302,1730307114115,500.0,0.00035834,5]
[341053303,1730307114315,779.15,0.00035833,5]
[341053304,1730307115244,500.0,0.00035834,5]
[341053305,1730307116489,221.794713,0.00013973,2]
[341053307,1730307121120,500.0,0.00035834,5]
[341053308,1730307121313,500.0,0.00035834,5]
[341053309,1730307122823,196.3000032,0.00033823,2]
[341053310,1730307125043,500.0,0.00035833,50]
[341053311,1730307126706,821.64831271,0.00035833,5]
[341053312,1730307126993,500.0,0.00035833,5]
[341053313,1730307127959,500.0,0.00035834,5]
[341053314,1730307128537,273.50686035,0.00035834,5]
[341053315,1730307128582,500.0,0.00035834,5]
[341053316,1730307128872,500.0,0.00035833,5]
[341053317,1730307129733,800.99,0.00035834,5]
[341053318,1730307131050,291.68193518,0.00035834,5]
[341053319,1730307136661,500.0,0.00035834,5]
[341053320,1730307137464,500.0,0.00035834,5]
[341053321,1730307137952,500.0,0.00035834,5]
[341053322,1730307139861,640.5,0.0003452,30]
[341053323,1730307139940,500.0,0.00035833,5]
[341053324,1730307140259,754.44,0.00035833,5]
[341053325,1730307140345,500.0,0.00035834,5]
[341053326,1730307141208,500.0,0.00035834,5]
[341053344,1730307192971,1586.49498956,0.000253,2]
[341053346,1730307216591,857.0,0.00024,120]
[341053355,1730307726697,161.471651,0.00013973,2]
[341053360,1730307932129,-161.471651,0.00022759,2]
[341053361,1730307932152,-140.43194847,0.00025299,2]
[341053362,1730307938107,-159.56805153,0.00025299,2]
[341053363,1730307938129,-300.0,0.00025299,2]
[341053364,1730307938150,-3828.24912401,0.000253,2]
[341053365,1730307938176,-3000.0,0.000253,2]
[341053366,1730307938197,-3000.0,0.0002531,2]
[341053367,1730307938232,-3000.0,0.0002532,2]
[341053368,1730307938258,-4111.356963,0.0002533,2]
[341053369,1730307938280,-380.0,0.00025991,2]
[341053370,1730307938303,-247.8079761,0.00026024,2]
[341053371,1730307938327,-177.446491,0.00026031,2]
[341053372,1730307938350,-177.446491,0.00026302,2]
[341053373,1730307938373,-177.446491,0.00026573,2]
[341053374,1730307938395,-177.446491,0.00026845,2]
[341053375,1730307938417,-89.50237045,0.00027,2]
[341053382,1730308045107,-166.666666,0.00026894,2]
[341053383,1730308045130,-74.49762955,0.00027,2]
[341053384,1730308045155,-177.446491,0.00027116,2]
[341053385,1730308045177,-177.446491,0.00027387,2]
[341053386,1730308045199,-166.666666,0.00027627,2]
[341053387,1730308045221,-166.666666,0.0002836,2]
[341053388,1730308045246,-165.0,0.00028767,2]
[341053389,1730308045269,-109.28064653,0.00029093,2]
[341053390,1730308048109,-57.38601947,0.00029093,2]
[341053391,1730308048131,-300.0,0.00029526,2]
[341053392,1730308048154,-300.0,0.00029526,2]
[341053393,1730308048175,-500.0,0.00029527,2]
[341053394,1730308048198,-604.35386437,0.00029527,2]
[341053395,1730308048221,-519.46402822,0.00029527,2]
[341053396,1730308048247,-500.0,0.00029527,2]
[341053397,1730308048271,-500.0,0.00029527,2]
[341053398,1730308048292,-500.0,0.00029527,2]
[341053399,1730308048313,-500.0,0.00029527,2]
[341053400,1730308048333,-500.0,0.00029527,2]
[341053401,1730308048354,-437.36588305,0.00029527,2]
[341053402,1730308048375,-400.0,0.00029527,2]
[341053403,1730308048397,-500.0,0.00029527,2]
[341053404,1730308048418,-623.02249725,0.00029527,2]
[341053405,1730308048438,-500.0,0.00029527,2]
[341053406,1730308048458,-500.0,0.00029527,2]
[341053407,1730308048479,-500.0,0.00029527,2]
[341053408,1730308048499,-500.0,0.00029527,2]
[341053409,1730308048528,-304.5269176,0.00029527,2]
[341053422,1730308098957,1000000.0,0.0003458,29]
[341053423,1730308111468,1000001.0,0.0003458,29]
[341053424,1730308113920,1000002.0,0.0003458,29]
[341053425,1730308116493,1000003.0,0.0003458,29]
[341053426,1730308119024,1000004.0,0.0003458,29]
[341053427,1730308121792,1000005.0,0.0003458,29]
[341053428,1730308124705,1000006.0,0.0003458,29]
[341053429,1730308127937,1000007.0,0.0003458,29]
[341053430,1730308130718,1000008.0,0.0003458,29]
[341053431,1730308133478,999964.0,0.0003458,29]
[341053432,1730308159173,-150.0,0.00024658,2]
[341053433,1730308159195,-300.0,0.00028079,2]
[341053434,1730308159217,-300.0,0.00028079,2]
[341053435,1730308159240,-24880.0,0.0002808,2]
[341053436,1730308159263,-500.0,0.00029526,2]
[341053437,1730308159285,-195.4730824,0.00029526,2]
[341053438,1730308159403,-500.0,0.00029526,2]
[341053439,1730308159424,-500.0,0.00029526,2]
[341053440,1730308159447,-500.0,0.00029526,2]
[341053441,1730308159467,-500.0,0.00029526,2]
[341053442,1730308159489,-500.0,0.00029526,2]
[341053443,1730308159510,-500.0,0.00029526,2]
[341053444,1730308159532,-500.0,0.00029526,2]
[341053445,1730308159555,-500.0,0.00029526,2]
[341053446,1730308159579,-500.0,0.00029526,2]
[341053447,1730308159601,-500.0,0.00029526,2]
[341053448,1730308159622,-500.0,0.00029526,2]
[341053449,1730308159644,-500.0,0.00029526,2]
[341053450,1730308159667,-500.0,0.00029526,2]
[341053451,1730308159688,-500.0,0.00029526,2]
[341053452,1730308159710,-500.0,0.00029526,2]
[341053453,1730308159731,-500.0,0.00029526,2]
[341053454,1730308159752,-500.0,0.00029526,2]
[341053455,1730308159772,-500.0,0.00029526,2]
[341053456,1730308159793,-500.0,0.00029526,2]
[341053457,1730308159813,-205.91313333,0.00029526,2]
[341053458,1730308159836,-5000.0,0.00029526,2]
[341053459,1730308159857,-215.05972419,0.00029528,2]
[341053460,1730308159877,-166.666666,0.00029826,2]
[341053461,1730308159898,-300.0,0.00029864,64]
[341053462,1730308159919,-151.0,0.0003,120]
[341053463,1730308159940,-266.0,0.0003,2]
[341053464,1730308159961,-420.0,0.00030323,2]
[341053465,1730308159981,-166.666666,0.0003056,2]
[341053466,1730308160002,-420.0,0.00030887,2]
[341053467,1730308160023,-161.471651,0.00031546,2]
[341053468,1730308160043,-151.0,0.00031753,120]
[341053469,1730308160065,-587.0,0.00032746,2]
[341053470,1730308160091,-1501.35077189,0.00032876,2]
[341053471,1730308160112,-151.0,0.00033507,120]
[341053472,1730308161134,-587.0,0.00033976,2]
[341053473,1730308161158,-155.0,0.00035,14]
[341053474,1730308161180,-244.34466568,0.00035,7]
[341053475,1730308161202,-151.0,0.00035126,15]
[341053476,1730308161224,-151.0,0.0003526,120]
[341053477,1730308161247,-823.0,0.00035363,2]
[341053478,1730308161269,-160.79384877,0.00035516,2]
[341053479,1730308161291,-424.96,0.00035605,2]
[341053480,1730308161313,-867.08,0.00035606,3]
[341053481,1730308161337,-206.4,0.00035606,10]
[341053482,1730308161359,-360.34,0.00035606,10]
[341053483,1730308161386,-300.28,0.00035606,10]
[341053484,1730308161406,-500.0,0.00035615,7]
[341053485,1730308161426,-614.58621334,0.00035615,7]
[341053486,1730308161448,-261.90901874,0.00035615,7]
[341053487,1730308161469,-188.26293046,0.00035615,7]
[341053488,1730308161490,-270.98347379,0.00035615,7]
[341053489,1730308161510,-289.20701528,0.00035615,7]
[341053490,1730308161532,-500.0,0.00035615,7]
[341053491,1730308161553,-487.19776722,0.00035615,7]
[341053492,1730308161575,-500.0,0.00035615,7]
[341053493,1730308161595,-500.0,0.00035615,7]
[341053494,1730308161616,-500.0,0.00035615,7]
[341053495,1730308161638,-303.98888219,0.00035615,7]
[341053496,1730308161660,-477.03,0.00035615,2]
[341053497,1730308161680,-477.03,0.00035615,2]
[341053498,1730308161701,-477.03,0.00035615,2]
[341053499,1730308161722,-477.03,0.00035615,2]
[341053500,1730308161744,-477.03,0.00035615,2]
[341053501,1730308161767,-477.03,0.00035615,2]
[341053502,1730308161787,-477.03,0.00035615,2]
[341053503,1730308161807,-477.03,0.00035615,2]
[341053504,1730308161830,-477.03,0.00035615,2]
[341053505,1730308161850,-477.03,0.00035615,2]
[341053506,1730308161870,-260.20017255,0.00035616,5]
[341053507,1730308161892,-504.33069128,0.00035616,5]
[341053508,1730308161915,-175.24599055,0.00035616,5]
[341053509,1730308162015,-500.0,0.00035616,5]
[341053510,1730308162037,-500.0,0.00035616,5]
[341053511,1730308162057,-500.0,0.00035616,2]
[341053512,1730308162080,-500.0,0.00035616,2]
[341053513,1730308162101,-500.0,0.00035616,2]
[341053514,1730308162122,-501.50603932,0.00035616,5]
[341053515,1730308162144,-500.0,0.00035616,5]
[341053516,1730308162165,-506.86,0.00035616,5]
[341053517,1730308162186,-507.02315919,0.00035616,5]
[341053518,1730308162207,-500.0,0.00035616,5]
[341053519,1730308162228,-517.64386082,0.00035616,5]
[341053520,1730308162250,-500.0,0.00035616,5]
[341053521,1730308162273,-500.0,0.00035616,5]
[341053522,1730308162294,-500.0,0.00035616,5]
[341053523,1730308162315,-506.25615634,0.00035616,5]
[341053524,1730308162336,-500.0,0.00035616,5]
[341053525,1730308162360,-500.0,0.00035616,5]
[341053526,1730308162383,-500.0,0.00035616,5]
[341053527,1730308162405,-556.75004531,0.00035616,5]
[341053528,1730308162428,-500.0,0.00035616,5]
[341053529,1730308162448,-500.0,0.00035616,5]
[341053530,1730308162468,-500.0,0.00035616,5]
[341053531,1730308162488,-504.53256916,0.00035616,5]
[341053532,1730308162508,-500.0,0.00035616,5]
[341053533,1730308162528,-501.72488263,0.00035616,5]
[341053534,1730308162548,-500.0,0.00035616,5]
[341053535,1730308162568,-500.0,0.00035616,5]
[341053536,1730308162589,-586.90748819,0.00035616,5]
[341053537,1730308162610,-500.0,0.00035616,5]
[341053538,1730308162630,-500.0,0.00035616,5]
[341053539,1730308162650,-200.0,0.00035616,5]
[341053540,1730308162670,-503.83125158,0.00035616,5]
[341053541,1730308162690,-500.0,0.00035616,5]
[341053542,1730308162710,-500.0,0.00035616,5]
[341053543,1730308162732,-500.0,0.00035616,5]
[341053544,1730308162757,-500.0,0.00035616,5]
[341053545,1730308162779,-500.0,0.00035616,5]
[341053546,1730308162799,-500.0,0.00035616,2]
[341053547,1730308162821,-500.0,0.00035616,5]
[341053548,1730308162844,-500.0,0.00035616,5]
[341053549,1730308162866,-500.0,0.00035616,5]
[341053550,1730308162888,-500.0,0.00035616,5]
[341053551,1730308162912,-500.0,0.00035616,5]
[341053552,1730308162938,-500.0,0.00035616,5]
[341053553,1730308162961,-500.0,0.00035616,5]
[341053554,1730308162983,-500.0,0.00035616,5]
[341053555,1730308163004,-504.36273805,0.00035616,5]
[341053556,1730308163024,-505.91909524,0.00035616,5]
[341053557,1730308163045,-500.0,0.00035616,5]
[341053558,1730308163067,-503.39640031,0.00035616,5]
[341053559,1730308163089,-500.0,0.00035616,5]
[341053560,1730308163112,-500.0,0.00035616,5]
[341053561,1730308163133,-500.0,0.00035616,5]
[341053562,1730308163153,-500.0,0.00035616,5]
[341053563,1730308163175,-500.0,0.00035616,5]
[341053564,1730308163196,-500.0,0.00035616,5]
[341053565,1730308163217,-234.66578869,0.00035616,5]
[341053566,1730308163238,-500.0,0.00035616,5]
[341053567,1730308163261,-500.0,0.00035616,5]
[341053568,1730308163282,-500.0,0.00035616,5]
[341053569,1730308163302,-500.0,0.00035616,5]
[341053570,1730308163323,-504.83175233,0.00035616,5]
[341053571,1730308163343,-500.0,0.00035616,5]
[341053572,1730308163364,-500.0,0.00035616,5]
[341053573,1730308163385,-500.0,0.00035616,5]
[341053574,1730308163406,-500.0,0.00035616,5]
[341053575,1730308163426,-500.0,0.00035616,5]
[341053576,1730308163447,-151.0,0.00035616,14]
[341053577,1730308163468,-500.0,0.00035616,5]
[341053578,1730308163490,-500.0,0.00035616,5]
[341053579,1730308163511,-500.0,0.00035616,5]
[341053580,1730308163534,-500.0,0.00035616,5]
[341053581,1730308163555,-500.0,0.00035616,5]
[341053582,1730308163577,-500.0,0.00035616,5]
[341053583,1730308163673,-500.0,0.00035616,5]
[341053584,1730308163696,-155.26472,0.00035616,14]
[341053585,1730308163718,-500.0,0.00035616,5]
[341053586,1730308163744,-500.0,0.00035616,5]
[341053587,1730308163764,-500.0,0.00035616,5]
[341053588,1730308163785,-500.0,0.00035616,5]
[341053589,1730308163806,-151.0,0.00035616,14]
[341053590,1730308163827,-500.0,0.00035616,5]
[341053591,1730308163847,-500.0,0.00035616,5]
[341053592,1730308163868,-1017.75016764,0.00035616,89]
[341053593,1730308163890,-500.0,0.00035616,5]
[341053594,1730308163910,-500.0,0.00035616,5]
[341053595,1730308163932,-500.0,0.00035616,5]
[341053596,1730308163953,-178.45664463,0.00035616,5]
[341053597,1730308163974,-500.0,0.00035616,5]
[341053598,1730308163996,-500.0,0.00035616,5]
[341053599,1730308164016,-500.0,0.00035616,5]
[341053600,1730308164036,-500.0,0.00035616,5]
[341053601,1730308164058,-500.0,0.00035616,5]
[341053602,1730308164084,-735.61,0.00035616,5]
[341053603,1730308164104,-500.0,0.00035616,5]
[341053604,1730308164127,-500.0,0.00035616,5]
[341053605,1730308164147,-500.0,0.00035616,5]
[341053606,1730308164167,-503.36700555,0.00035616,5]
[341053607,1730308164188,-500.0,0.00035616,5]
[341053608,1730308164208,-502.43640953,0.00035616,5]
[341053609,1730308164231,-500.0,0.00035616,5]
[341053610,1730308164254,-500.0,0.00035616,5]
[341053611,1730308164275,-500.0,0.00035616,5]
[341053612,1730308164296,-500.0,0.00035616,5]
[341053613,1730308164317,-151.0,0.00035616,14]
[341053614,1730308164339,-500.0,0.00035616,5]
[341053615,1730308164361,-500.0,0.00035616,5]
[341053616,1730308164383,-500.0,0.00035616,5]
[341053617,1730308164405,-500.0,0.00035616,5]
[341053618,1730308164427,-500.0,0.00035616,5]
[341053619,1730308164450,-500.0,0.00035616,5]
[341053620,1730308164472,-587.41451821,0.00035616,5]
[341053621,1730308164495,-500.0,0.00035616,5]
[341053622,1730308164518,-796.43,0.00035616,5]
[341053623,1730308164541,-501.91102881,0.00035616,5]
[341053624,1730308164563,-507.25817471,0.00035616,5]
[341053625,1730308164584,-500.0,0.00035616,5]
[341053626,1730308164608,-500.0,0.00035616,5]
[341053627,1730308164629,-500.0,0.00035616,5]
[341053628,1730308164649,-505.22513884,0.00035616,5]
[341053629,1730308164669,-500.0,0.00035616,5]
[341053630,1730308164689,-500.0,0.00035616,5]
[341053631,1730308164710,-500.0,0.00035616,5]
[341053632,1730308164730,-500.0,0.00035616,5]
[341053633,1730308164750,-341.60446036,0.00035616,5]
[341053634,1730308164770,-172.99454177,0.00035616,5]
[341053635,1730308164791,-500.0,0.00035616,5]
[341053636,1730308164812,-500.0,0.00035616,5]
[341053637,1730308164833,-504.58723721,0.00035616,5]
[341053638,1730308164854,-500.0,0.00035616,5]
[341053639,1730308164875,-151.0,0.00035616,14]
[341053640,1730308164896,-500.0,0.00035616,5]
[341053641,1730308164918,-500.0,0.00035616,3]
[341053642,1730308164939,-506.0,0.00035616,5]
[341053643,1730308164961,-500.0,0.00035616,5]
[341053644,1730308164982,-500.0,0.00035616,5]
[341053645,1730308165005,-151.0,0.00035616,14]
[341053646,1730308165029,-500.0,0.00035616,5]
[341053647,1730308165050,-500.0,0.00035616,5]
[341053648,1730308165071,-618.25661361,0.00035616,5]
[341053649,1730308165096,-500.0,0.00035616,5]
[341053651,1730308165118,-500.0,0.00035616,5]
[341053652,1730308165139,-151.0,0.00035616,14]
[341053653,1730308165164,-483.748825,0.00035616,14]
[341053654,1730308165186,-500.0,0.00035616,5]
[341053655,1730308165286,-500.0,0.00035616,5]
[341053656,1730308165308,-151.0,0.00035616,14]
[341053657,1730308165331,-500.0,0.00035616,5]
[341053658,1730308165351,-299.010139,0.00035616,14]
[341053659,1730308165376,-483.748825,0.00035616,14]
[341053660,1730308165397,-500.0,0.00035616,5]
[341053661,1730308165418,-500.0,0.00035616,5]
[341053662,1730308165440,-500.0,0.00035616,5]
[341053663,1730308165463,-151.0,0.00035616,14]
[341053664,1730308165484,-299.010139,0.00035616,14]
[341053665,1730308165506,-500.0,0.00035616,5]
[341053666,1730308165529,-500.0,0.00035616,5]
[341053667,1730308165551,-760.35,0.00035616,5]
[341053668,1730308165577,-634.45466679,0.00035616,5]
[341053669,1730308165596,-500.0,0.00035616,5]
[341053670,1730308165620,-500.0,0.00035616,5]
[341053671,1730308165642,-500.0,0.00035616,5]
[341053672,1730308165664,-500.0,0.00035616,5]
[341053673,1730308165686,-500.0,0.00035616,5]
[341053674,1730308165710,-154.840522,0.00035616,14]
[341053675,1730308165732,-500.0,0.00035616,5]
[341053676,1730308165754,-500.0,0.00035616,5]
[341053677,1730308165775,-500.0,0.00035616,5]
[341053678,1730308165795,-500.0,0.00035616,5]
[341053679,1730308165816,-199.283022,0.00035616,14]
[341053680,1730308165837,-500.0,0.00035616,5]
[341053681,1730308165858,-500.0,0.00035616,5]
[341053682,1730308165880,-500.0,0.00035616,5]
[341053683,1730308165901,-500.0,0.00035616,5]
[341053684,1730308165922,-199.283022,0.00035616,14]
[341053685,1730308165947,-500.0,0.00035616,5]
[341053686,1730308165969,-500.0,0.00035616,5]
[341053687,1730308165991,-501.61108564,0.00035616,5]
[341053688,1730308166013,-352.98781486,0.00035616,5]
[341053689,1730308166037,-500.0,0.00035616,5]
[341053690,1730308166058,-500.0,0.00035616,5]
[341053691,1730308166080,-500.0,0.00035616,5]
[341053692,1730308166100,-500.0,0.00035616,5]
[341053693,1730308166124,-500.0,0.00035616,5]
[341053694,1730308166145,-930.7,0.00035616,5]
[341053695,1730308166166,-500.0,0.00035616,5]
[341053696,1730308166186,-372.95848181,0.00035616,5]
[341053697,1730308166208,-501.72086305,0.00035616,5]
[341053698,1730308166230,-500.0,0.00035616,5]